fUST/lending_fUST_20240711
["ID","MTS","AMOUNT","RATE_DAILY","PERIOD"]
[331713144,1720684240395,-215.126289,0.00027396,7]
[331713145,1720684240404,-215.126289,0.00027396,7]
[331713146,1720684240413,-251.40015,0.00027396,7]
[331713147,1720684240422,-251.40015,0.00027396,7]
[331713148,1720684240431,-500.0,0.00027397,2]
[331713149,1720684240439,-151.0,0.00027397,7]
[331713150,1720684240448,-301.12860037,0.00027397,7]
[331713151,1720684240458,-532.15749455,0.00027397,7]
[331713152,1720684240467,-515.26768314,0.00027397,7]
[331713153,1720684240481,-639.402386,0.00027397,7]
[331713154,1720684240490,-500.0,0.00027397,7]
[331713155,1720684240499,-500.0,0.00027397,7]
[331713156,1720684240509,-500.0,0.00027397,7]
[331713157,1720684240519,-500.0,0.00027397,7]
[331713158,1720684240528,-500.0,0.00027397,7]
[331713159,1720684240538,-500.0,0.00027397,7]
[331713160,1720684240547,-500.0,0.00027397,7]
[331713161,1720684240557,-500.0,0.00027397,7]
[331713162,1720684240566,-500.0,0.00027397,7]
[331713163,1720684240576,-500.0,0.00027397,7]
[331713164,1720684240586,-518.21374054,0.00027397,7]
[331713165,1720684240596,-632.29556562,0.00027397,7]
[331713166,1720684240605,-500.0,0.00027397,7]
[331713167,1720684240615,-500.0,0.00027397,7]
[331713168,1720684240625,-511.01571177,0.00027397,7]
[331713169,1720684240634,-215.126289,0.00027397,7]
[331713170,1720684240643,-215.126289,0.00027397,7]
[331713171,1720684240654,-215.126289,0.00027397,7]
[331713172,1720684240663,-215.126289,0.00027397,7]
[331713173,1720684240673,-215.126289,0.00027397,7]
[331713174,1720684240682,-215.126289,0.00027397,7]
[331713175,1720684240691,-215.126289,0.00027397,7]
[331713176,1720684240702,-215.126285,0.00027397,7]
[331713177,1720684240711,-560.99005077,0.00027397,7]
[331713178,1720684240721,-251.40015,0.00027397,7]
[331713179,1720684240734,-251.40015,0.00027397,7]
[331713180,1720684240743,-251.40015,0.00027397,7]
[331713181,1720684240752,-251.40015,0.00027397,7]
[331713182,1720684240762,-251.40015,0.00027397,7]
[331713183,1720684240771,-251.40015,0.00027397,7]
[331713184,1720684240781,-251.40015,0.00027397,7]
[331713185,1720684240790,-251.40015,0.00027397,7]
[331713186,1720684240800,-528.52275508,0.00027397,7]
[331713187,1720684240809,-327.80685678,0.00027397,7]
[331713188,1720684240819,-500.0,0.00027397,7]
[331713189,1720684240828,-507.85998537,0.00027397,7]
[331713190,1720684240838,-503.06573629,0.00027397,7]
[331713191,1720684240848,-502.5707357,0.00027397,7]
[331713192,1720684240857,-500.0,0.00027397,7]
[331713193,1720684240866,-510.29106682,0.00027397,7]
[331713194,1720684240875,-500.0,0.00027397,7]
[331713195,1720684240885,-507.79723685,0.00027397,7]
[331713196,1720684240894,-534.5423837,0.00027397,7]
[331713197,1720684240903,-500.0,0.00027397,7]
[331713198,1720684240924,-505.59750575,0.00027397,7]
[331713199,1720684240934,-504.19458022,0.00027397,7]
[331713200,1720684240946,-505.97144806,0.00027397,7]
[331713201,1720684240956,-502.13801024,0.00027397,7]
[331713202,1720684240967,-505.90317737,0.00027397,7]
[331713203,1720684240978,-500.0,0.00027397,2]
[331713204,1720684240989,-500.0,0.00027397,7]
[331713205,1720684240999,-479.29304862,0.00027397,7]
[331713206,1720684241008,-503.5058541,0.00027397,7]
[331713207,1720684241018,-504.53755586,0.00027397,7]
[331713208,1720684241028,-500.0,0.00027397,7]
[331713209,1720684241038,-1345.13,0.00027397,4]
[331713210,1720684241047,-505.58590516,0.00027397,7]
[331713211,1720684241058,-500.0,0.00027397,2]
[331713212,1720684241069,-290.16021678,0.00027397,7]
[331713213,1720684241079,-500.0,0.00027397,7]
[331713214,1720684241089,-511.19878293,0.00027397,7]
[331713215,1720684241099,-502.60684401,0.00027397,7]
[331713216,1720684241110,-510.0203626,0.00027397,7]
[331713217,1720684241121,-500.0,0.00027397,7]
[331713218,1720684241131,-500.0,0.00027397,7]
[331713219,1720684241142,-500.0,0.00027397,7]
[331713220,1720684241152,-500.0,0.00027397,7]
[331713221,1720684241163,-500.0,0.00027397,7]
[331713222,1720684241173,-500.0,0.00027397,7]
[331713223,1720684241184,-500.0,0.00027397,7]
[331713224,1720684241195,-500.0,0.00027397,7]
[331713225,1720684241205,-640.5086711,0.00027397,7]
[331713226,1720684241215,-500.0,0.00027397,7]
[331713227,1720684241227,-500.0,0.00027397,7]
[331713228,1720684241237,-4436.48,0.00027397,7]
[331713229,1720684241246,-1544.52,0.00027397,7]
[331713230,1720684241256,-500.0,0.00027397,7]
[331713231,1720684241268,-846.03,0.00027397,7]
[331713232,1720684241278,-151.0,0.00027397,7]
[331713233,1720684241288,-151.0,0.00027397,7]
[331713234,1720684241299,-223.365942,0.00027397,7]
[331713235,1720684241308,-500.0,0.00027397,2]
[331713236,1720684241318,-500.0,0.00027397,7]
[331713237,1720684241327,-500.0,0.00027397,7]
[331713238,1720684241338,-500.0,0.00027397,7]
[331713239,1720684241349,-513.23643489,0.00027397,7]
[331713240,1720684241359,-513.80202433,0.00027397,7]
[331713241,1720684241370,-511.98460317,0.00027397,7]
[331713242,1720684241380,-500.0,0.00027397,7]
[331713243,1720684241390,-527.78510533,0.00027397,7]
[331713244,1720684241401,-551.32781378,0.00027397,7]
[331713245,1720684241410,-512.11068226,0.00027397,7]
[331713246,1720684241420,-590.09016064,0.00027397,7]
[331713247,1720684241431,-540.5,0.00027397,7]
[331713248,1720684241440,-505.23718193,0.00027397,7]
[331713249,1720684241450,-548.31550788,0.00027397,7]
[331713250,1720684241460,-808.22,0.00027397,7]
[331713251,1720684241469,-538.92,0.00027397,7]
[331713252,1720684241480,-546.03283777,0.00027397,7]
[331713253,1720684241491,-500.0,0.00027397,7]
[331713254,1720684241501,-519.61435432,0.00027397,7]
[331713255,1720684241511,-500.0,0.00027397,7]
[331713256,1720684241522,-528.30293569,0.00027397,7]
[331713257,1720684241532,-500.0,0.00027397,7]
[331713258,1720684241542,-545.65566074,0.00027397,7]
[331713259,1720684241552,-500.0,0.00027397,7]
[331713260,1720684241562,-500.0,0.00027397,7]
[331713261,1720684241571,-502.8349994,0.00027397,7]
[331713262,1720684241581,-500.0,0.00027397,7]
[331713263,1720684241590,-508.78410784,0.00027397,7]
[331713264,1720684241600,-504.21279752,0.00027397,7]
[331713265,1720684241610,-511.084096,0.00027397,7]
[331713266,1720684241620,-500.0,0.00027397,7]
[331713267,1720684241630,-507.15737686,0.00027397,7]
[331713268,1720684241640,-521.48,0.00027397,7]
[331713269,1720684241650,-509.25492053,0.00027397,7]
[331713270,1720684241660,-500.0,0.00027397,7]
[331713271,1720684241669,-500.0,0.00027397,7]
[331713272,1720684241680,-506.21113113,0.00027397,7]
[331713273,1720684241690,-500.0,0.00027397,7]
[331713274,1720684241700,-500.0,0.00027397,7]
[331713275,1720684241710,-155.37826238,0.00027397,7]
[331713276,1720684241719,-502.13604143,0.00027397,7]
[331713277,1720684241731,-605.47,0.00027397,7]
[331713278,1720684241741,-500.0,0.00027397,7]
[331713279,1720684241751,-500.0,0.00027397,7]
[331713280,1720684241761,-500.0,0.00027397,7]
[331713281,1720684241771,-175.5408137,0.00027397,7]
[331713282,1720684241782,-500.0,0.00027397,7]
[331713283,1720684241792,-500.0,0.00027397,7]
[331713284,1720684241802,-500.0,0.00027397,7]
[331713285,1720684241812,-500.0,0.00027397,7]
[331713286,1720684241822,-500.0,0.00027397,7]
[331713287,1720684241831,-500.0,0.00027397,7]
[331713288,1720684241841,-500.0,0.00027397,7]
[331713289,1720684241851,-621.05335439,0.00027397,7]
[331713290,1720684241861,-504.89500772,0.00027397,7]
[331713291,1720684241871,-509.32352373,0.00027397,7]
[331713292,1720684241881,-511.27534355,0.00027397,7]
[331713293,1720684241891,-500.62295791,0.00027397,7]
[331713294,1720684241900,-511.39439832,0.00027397,7]
[331713295,1720684241910,-474.82168607,0.00027397,7]
[331713296,1720684241919,-459.77097584,0.00027397,7]
[331713297,1720684241929,-500.0,0.00027397,7]
[331713298,1720684241938,-519.68300131,0.00027397,7]
[331713299,1720684241948,-508.87232539,0.00027397,7]
[331713300,1720684241958,-502.06043175,0.00027397,7]
[331713301,1720684241967,-503.66230659,0.00027397,7]
[331713302,1720684241979,-380.02280024,0.00027397,7]
[331713303,1720684241988,-500.0,0.00027397,7]
[331713304,1720684241997,-578.44407192,0.00027397,7]
[331713305,1720684242007,-521.92596149,0.00027397,7]
[331713306,1720684242016,-523.64343137,0.00027397,7]
[331713307,1720684242025,-291.8435049,0.00027397,7]
[331713308,1720684242035,-511.27066309,0.00027397,7]
[331713309,1720684242044,-506.88250024,0.00027397,7]
[331713310,1720684242054,-503.92547854,0.00027397,7]
[331713311,1720684242063,-529.21350697,0.00027397,7]
[331713312,1720684242073,-796.07,0.00027397,7]
[331713313,1720684242083,-515.11182804,0.00027397,7]
[331713314,1720684242093,-502.91551831,0.00027397,7]
[331713315,1720684242209,-516.75697011,0.00027397,7]
[331713316,1720684242220,-505.6596864,0.00027397,7]
[331713317,1720684242231,-500.0,0.00027397,7]
[331713318,1720684242240,-483.32244362,0.00027397,7]
[331713319,1720684242249,-515.21584444,0.00027397,7]
[331713320,1720684242259,-221.62805921,0.00027397,7]
[331713321,1720684242268,-500.0,0.00027397,7]
[331713322,1720684242278,-500.0,0.00027397,7]
[331713323,1720684242289,-500.0,0.00027397,7]
[331713324,1720684242299,-508.34709448,0.00027397,7]
[331713325,1720684242310,-552.6666109,0.00027397,7]
[331713326,1720684242319,-198.85333845,0.00027397,7]
[331713327,1720684242328,-180.47101271,0.00027397,7]
[331713328,1720684242337,-511.16768208,0.00027397,7]
[331713329,1720684242347,-516.85066936,0.00027397,7]
[331713330,1720684242356,-500.0,0.00027397,7]
[331713331,1720684242366,-500.0,0.00027397,7]
[331713332,1720684242377,-347.41848211,0.00027397,7]
[331713333,1720684242387,-663.8,0.00027397,7]
[331713334,1720684242397,-504.12112158,0.00027397,7]
[331713336,1720684242406,-517.15648468,0.00027397,7]
[331713338,1720684242415,-505.42514594,0.00027397,7]
[331713340,1720684242425,-516.79184332,0.00027397,7]
[331713342,1720684242435,-500.0,0.00027397,7]
[331713344,1720684242444,-500.0,0.00027397,7]
[331713346,1720684242454,-500.0,0.00027397,7]
[331713348,1720684242463,-500.0,0.00027397,7]
[331713350,1720684242472,-500.0,0.00027397,7]
[331713352,1720684242484,-500.0,0.00027397,7]
[331713354,1720684242494,-500.0,0.00027397,7]
[331713356,1720684242503,-500.0,0.00027397,7]
[331713358,1720684242513,-500.0,0.00027397,7]
[331713360,1720684242523,-500.0,0.00027397,7]
[331713361,1720684242532,-500.0,0.00027397,7]
[331713362,1720684242542,-500.0,0.00027397,7]
[331713363,1720684242551,-500.0,0.00027397,7]
[331713364,1720684242561,-500.0,0.00027397,7]
[331713366,1720684242571,-500.0,0.00027397,7]
[331713367,1720684242580,-500.0,0.00027397,7]
[331713369,1720684242590,-500.0,0.00027397,7]
[331713371,1720684242600,-500.0,0.00027397,7]
[331713373,1720684242609,-991.21,0.00027397,7]
[331713374,1720684242619,-483.63792122,0.00027397,7]
[331713376,1720684242629,-510.77118145,0.00027397,7]
[331713378,1720684242638,-542.63,0.00027397,7]
[331713379,1720684242648,-470.01220556,0.00027397,7]
[331713381,1720684242657,-2637.29,0.00027397,7]
[331713383,1720684242668,-520.06289906,0.00027397,7]
[331713385,1720684242677,-500.0,0.00027397,7]
[331713387,1720684242687,-591.11,0.00027397,7]
[331713388,1720684242696,-509.54041308,0.00027397,7]
[331713389,1720684242706,-1442.29,0.00027397,7]
[331713390,1720684242716,-202.80589411,0.00027397,7]
[331713391,1720684242726,-500.0,0.00027397,7]
[331713392,1720684242736,-531.09,0.00027397,7]
[331713393,1720684242746,-500.0,0.00027397,7]
[331713394,1720684242755,-500.0,0.00027397,7]
[331713395,1720684242765,-157.78989102,0.00027397,7]
[331713396,1720684242774,-500.0,0.00027397,7]
[331713397,1720684242784,-500.0,0.00027397,7]
[331713398,1720684242794,-1281.46,0.00027397,7]
[331713399,1720684242804,-500.0,0.00027397,7]
[331713400,1720684242813,-541.86,0.00027397,7]
[331713401,1720684242823,-500.0,0.00027397,7]
[331713402,1720684242832,-514.4141306,0.00027397,7]
[331713403,1720684242842,-241.03281004,0.00027397,7]
[331713404,1720684242851,-500.0,0.00027397,7]
[331713405,1720684242861,-496.17477427,0.00027397,7]
[331713406,1720684242871,-601.67,0.00027397,7]
[331713407,1720684242880,-504.24105807,0.00027397,7]
[331713408,1720684242890,-500.0,0.00027397,7]
[331713409,1720684242899,-500.0,0.00027397,7]
[331713410,1720684242908,-500.0,0.00027397,7]
[331713411,1720684242918,-2488.85,0.00027397,7]
[331713412,1720684242927,-158.6616312,0.00027397,7]
[331713413,1720684242937,-500.0,0.00027397,7]
[331713415,1720684242946,-181.86153676,0.00027397,7]
[331713417,1720684242956,-500.0,0.00027397,7]
[331713419,1720684242966,-6110.42,0.00027397,7]
[331713420,1720684242975,-794.78,0.00027397,7]
[331713421,1720684242984,-500.0,0.00027397,7]
[331713422,1720684242993,-500.0,0.00027397,7]
[331713423,1720684243003,-500.0,0.00027397,7]
[331713424,1720684243011,-248.13234264,0.00027397,7]
[331713425,1720684243020,-170.39922346,0.00027397,7]
[331713426,1720684243030,-550.28096999,0.00027397,7]
[331713427,1720684243039,-500.0,0.00027397,7]
[331713428,1720684243049,-600.0,0.00027397,7]
[331713429,1720684243058,-500.0,0.00027397,2]
[331713430,1720684243067,-500.0,0.00027397,7]
[331713431,1720684243076,-248.73343512,0.00027397,7]
[331713432,1720684243085,-497.2291867,0.00027397,7]
[331713433,1720684243095,-507.59917498,0.00027397,7]
[331713434,1720684243105,-509.86080475,0.00027397,7]
[331713435,1720684243114,-178.707988,0.00027397,7]
[331713436,1720684243123,-178.707988,0.00027397,7]
[331713437,1720684243133,-178.707988,0.00027397,7]
[331713438,1720684243142,-178.707988,0.00027397,7]
[331713439,1720684243151,-178.707988,0.00027397,7]
[331713440,1720684243162,-178.707988,0.00027397,7]
[331713441,1720684243177,-178.707988,0.00027397,7]
[331713442,1720684243192,-178.707988,0.00027397,7]
[331713443,1720684243207,-178.707988,0.00027397,7]
[331713444,1720684243218,-178.707988,0.00027397,7]
[331713445,1720684243232,-178.707988,0.00027397,7]
[331713446,1720684243245,-178.707988,0.00027397,7]
[331713447,1720684243258,-178.707988,0.00027397,7]
[331713448,1720684243272,-178.707988,0.00027397,7]
[331713449,1720684243287,-178.707988,0.00027397,7]
[331713450,1720684243302,-178.707988,0.00027397,7]
[331713451,1720684243315,-178.707988,0.00027397,7]
[331713452,1720684243328,-178.707988,0.00027397,7]
[331713453,1720684243339,-178.707988,0.00027397,7]
[331713454,1720684243352,-178.707991,0.00027397,7]
[331713455,1720684243363,-205.619914,0.00027397,7]
[331713456,1720684243376,-151.0,0.00027397,7]
[331713457,1720684243389,-151.0,0.00027397,7]
[331713458,1720684243401,-151.0,0.00027397,7]
[331713459,1720684243412,-151.0,0.00027397,7]
[331713460,1720684243423,-158.016287,0.00027397,7]
[331713461,1720684243435,-181.673412,0.00027397,7]
[331713462,1720684243448,-181.673412,0.00027397,7]
[331713463,1720684243460,-181.673412,0.00027397,7]
[331713464,1720684243473,-181.673412,0.00027397,7]
[331713465,1720684243486,-181.673412,0.00027397,7]
[331713466,1720684243500,-181.673412,0.00027397,7]
[331713467,1720684243514,-181.673412,0.00027397,7]
[331713468,1720684243529,-181.673412,0.00027397,7]
[331713469,1720684243539,-181.673412,0.00027397,7]
[331713470,1720684243551,-181.673412,0.00027397,7]
[331713471,1720684243562,-181.673412,0.00027397,7]
[331713472,1720684243576,-181.673412,0.00027397,7]
[331713473,1720684243589,-181.673412,0.00027397,7]
[331713474,1720684243603,-181.673412,0.00027397,7]
[331713475,1720684243614,-181.673412,0.00027397,7]
[331713476,1720684243625,-181.673412,0.00027397,7]
[331713477,1720684243637,-181.673412,0.00027397,7]
[331713478,1720684243650,-181.673412,0.00027397,7]
[331713479,1720684243660,-181.673412,0.00027397,7]
[331713480,1720684243671,-181.673413,0.00027397,7]
[331713481,1720684243682,-151.0,0.00027397,7]
[331713482,1720684243693,-151.0,0.00027397,7]
[331713483,1720684243705,-151.0,0.00027397,7]
[331713484,1720684243717,-163.59061,0.00027397,7]
[331713485,1720684243728,-435.748526,0.00027397,7]
[331713486,1720684243739,-435.748526,0.00027397,7]
[331713487,1720684243751,-435.748526,0.00027397,7]
[331713488,1720684243762,-435.748526,0.00027397,7]
[331713489,1720684243773,-435.748526,0.00027397,7]
[331713490,1720684243785,-435.748526,0.00027397,7]
[331713491,1720684243796,-435.748526,0.00027397,7]
[331713492,1720684243807,-435.748526,0.00027397,7]
[331713493,1720684243818,-435.748526,0.00027397,7]
[331713494,1720684243829,-435.748526,0.00027397,7]
[331713495,1720684243842,-435.748526,0.00027397,7]
[331713496,1720684243853,-435.748526,0.00027397,7]
[331713497,1720684243865,-435.748526,0.00027397,7]
[331713498,1720684243876,-435.748526,0.00027397,7]
[331713499,1720684243887,-435.748526,0.00027397,7]
[331713500,1720684243898,-435.748526,0.00027397,7]
[331713501,1720684243909,-435.748526,0.00027397,7]
[331713502,1720684243920,-435.748526,0.00027397,7]
[331713503,1720684243931,-435.748526,0.00027397,7]
[331713504,1720684243942,-435.748536,0.00027397,7]
[331713505,1720684243953,-151.0,0.00027397,7]
[331713506,1720684243964,-152.082886,0.00027397,7]
[331713507,1720684243975,-151.0,0.00027397,7]
[331713508,1720684243987,-151.0,0.00027397,7]
[331713509,1720684243998,-151.0,0.00027397,7]
[331713510,1720684244010,-151.0,0.00027397,7]
[331713511,1720684244021,-151.0,0.00027397,7]
[331713512,1720684244032,-151.0,0.00027397,7]
[331713513,1720684244043,-151.0,0.00027397,7]
[331713514,1720684244054,-151.0,0.00027397,7]
[331713515,1720684244065,-151.0,0.00027397,7]
[331713516,1720684244077,-151.0,0.00027397,7]
[331713517,1720684244088,-151.0,0.00027397,7]
[331713518,1720684244100,-151.0,0.00027397,7]
[331713519,1720684244111,-151.0,0.00027397,7]
[331713520,1720684244122,-151.0,0.00027397,7]
[331713521,1720684244133,-151.0,0.00027397,7]
[331713522,1720684244144,-151.0,0.00027397,7]
[331713523,1720684244156,-151.0,0.00027397,7]
[331713524,1720684244168,-151.0,0.00027397,7]
[331713525,1720684244178,-153.509778,0.00027397,7]
[331713526,1720684244188,-151.0,0.00027397,7]
[331713527,1720684244197,-151.0,0.00027397,7]
[331713528,1720684244207,-151.0,0.00027397,7]
[331713529,1720684244216,-151.0,0.00027397,7]
[331713530,1720684244226,-151.0,0.00027397,7]
[331713531,1720684244236,-151.0,0.00027397,7]
[331713532,1720684244245,-151.0,0.00027397,7]
[331713533,1720684244388,-151.0,0.00027397,7]
[331713534,1720684244404,-151.0,0.00027397,7]
[331713535,1720684244413,-151.0,0.00027397,7]
[331713536,1720684244423,-169.050809,0.00027397,7]
[331713537,1720684244432,-151.0,0.00027397,7]
[331713538,1720684244441,-169.431542,0.00027397,7]
[331713539,1720684244450,-153.275478,0.00027397,7]
[331713540,1720684244459,-151.0,0.00027397,7]
[331713541,1720684244468,-151.0,0.00027397,7]
[331713542,1720684244478,-292.472805,0.00027397,7]
[331713543,1720684244488,-151.0,0.00027397,7]
[331713544,1720684244497,-151.0,0.00027397,7]
[331713545,1720684244508,-151.0,0.00027397,7]
[331713546,1720684244517,-151.0,0.00027397,7]
[331713547,1720684244526,-151.0,0.00027397,7]
[331713548,1720684244535,-151.0,0.00027397,7]
[331713549,1720684244544,-151.0,0.00027397,7]
[331713550,1720684244553,-151.0,0.00027397,7]
[331713551,1720684244563,-151.0,0.00027397,7]
[331713552,1720684244572,-151.0,0.00027397,7]
[331713553,1720684244582,-151.0,0.00027397,7]
[331713554,1720684244591,-155.979425,0.00027397,7]
[331713555,1720684244601,-151.0,0.00027397,7]
[331713556,1720684244610,-151.0,0.00027397,7]
[331713557,1720684244619,-151.0,0.00027397,7]
[331713558,1720684244628,-151.0,0.00027397,7]
[331713559,1720684244638,-151.0,0.00027397,7]
[331713560,1720684244647,-151.0,0.00027397,7]
[331713561,1720684244656,-151.0,0.00027397,7]
[331713562,1720684244666,-151.0,0.00027397,7]
[331713563,1720684244675,-191.699334,0.00027397,7]
[331713564,1720684244684,-166.563049,0.00027397,120]
[331713565,1720684244694,-770.772724,0.00027397,7]
[331713566,1720684244703,-770.772724,0.00027397,7]
[331713567,1720684244712,-770.772724,0.00027397,7]
[331713568,1720684244722,-770.772724,0.00027397,7]
[331713569,1720684244733,-182.989071,0.00027397,7]
[331713570,1720684244742,-182.989071,0.00027397,7]
[331713571,1720684244751,-770.772724,0.00027397,7]
[331713572,1720684244761,-770.772724,0.00027397,7]
[331713573,1720684244771,-182.989071,0.00027397,7]
[331713574,1720684244779,-182.989071,0.00027397,7]
[331713575,1720684244789,-770.772724,0.00027397,7]
[331713576,1720684244798,-182.989071,0.00027397,7]
[331713577,1720684244808,-770.772724,0.00027397,7]
[331713578,1720684244818,-770.772724,0.00027397,7]
[331713579,1720684244827,-182.989071,0.00027397,7]
[331713580,1720684244837,-770.772724,0.00027397,7]
[331713581,1720684244846,-770.772724,0.00027397,7]
[331713582,1720684244855,-182.989071,0.00027397,7]
[331713583,1720684244864,-182.989071,0.00027397,7]
[331713584,1720684244873,-770.772724,0.00027397,7]
[331713585,1720684244882,-182.989071,0.00027397,7]
[331713586,1720684244891,-182.989071,0.00027397,7]
[331713587,1720684244900,-182.989071,0.00027397,7]
[331713588,1720684244909,-770.772724,0.00027397,7]
[331713589,1720684244919,-182.989071,0.00027397,7]
[331713590,1720684244928,-182.989071,0.00027397,7]
[331713591,1720684244938,-770.772724,0.00027397,7]
[331713592,1720684244947,-770.772724,0.00027397,7]
[331713593,1720684244956,-182.989071,0.00027397,7]
[331713594,1720684244966,-770.772724,0.00027397,7]
[331713596,1720684244975,-770.772724,0.00027397,7]
[331713597,1720684244985,-182.989071,0.00027397,7]
[331713598,1720684244994,-770.772724,0.00027397,7]
[331713599,1720684245003,-770.772724,0.00027397,7]
[331713600,1720684245012,-182.989071,0.00027397,7]
[331713601,1720684245020,-770.772716,0.00027397,7]
[331713602,1720684245029,-182.989071,0.00027397,7]
[331713603,1720684245039,-182.989071,0.00027397,7]
[331713604,1720684245048,-182.989071,0.00027397,7]
[331713605,1720684245057,-182.989067,0.00027397,7]
[331713606,1720684245066,-151.0,0.00027397,7]
[331713607,1720684245075,-151.0,0.00027397,7]
[331713608,1720684245084,-161.148234,0.00027397,7]
[331713609,1720684245093,-155.43131,0.00027397,7]
[331713610,1720684245102,-151.0,0.00027397,7]
[331713611,1720684245111,-151.0,0.00027397,7]
[331713612,1720684245120,-151.0,0.00027397,7]
[331713613,1720684245128,-151.0,0.00027397,7]
[331713614,1720684245138,-151.0,0.00027397,7]
[331713615,1720684245147,-151.0,0.00027397,7]
[331713616,1720684245156,-151.0,0.00027397,7]
[331713617,1720684245165,-151.0,0.00027397,7]
[331713618,1720684245174,-151.0,0.00027397,7]
[331713619,1720684245183,-151.0,0.00027397,7]
[331713620,1720684245192,-151.0,0.00027397,7]
[331713621,1720684245201,-151.0,0.00027397,7]
[331713622,1720684245210,-151.0,0.00027397,7]
[331713623,1720684245219,-151.0,0.00027397,2]
[331713624,1720684245228,-151.0,0.00027397,2]
[331713625,1720684245237,-151.0,0.00027397,2]
[331713626,1720684245246,-151.0,0.00027397,2]
[331713627,1720684245255,-245.902831,0.00027397,2]
[331713628,1720684245264,-151.0,0.00027397,7]
[331713629,1720684245273,-151.0,0.00027397,7]
[331713630,1720684245282,-151.0,0.00027397,7]
[331713631,1720684245293,-164.620352,0.00027397,7]
[331713632,1720684245303,-676.11548,0.00027397,7]
[331713633,1720684245312,-676.11548,0.00027397,7]
[331713634,1720684245321,-676.11548,0.00027397,7]
[331713635,1720684245330,-676.11548,0.00027397,7]
[331713636,1720684245339,-676.11548,0.00027397,7]
[331713637,1720684245348,-676.11548,0.00027397,7]
[331713638,1720684245358,-676.11548,0.00027397,7]
[331713639,1720684245367,-676.11548,0.00027397,7]
[331713640,1720684245376,-676.11548,0.00027397,7]
[331713641,1720684245387,-676.11548,0.00027397,7]
[331713642,1720684245396,-676.11548,0.00027397,7]
[331713643,1720684245407,-676.11548,0.00027397,7]
[331713645,1720684245416,-676.11548,0.00027397,7]
[331713647,1720684245427,-676.11548,0.00027397,7]
[331713648,1720684245437,-676.11548,0.00027397,7]
[331713649,1720684245447,-676.11548,0.00027397,7]
[331713650,1720684245457,-676.11548,0.00027397,7]
[331713652,1720684245467,-676.11548,0.00027397,7]
[331713653,1720684245476,-676.11548,0.00027397,7]
[331713654,1720684245486,-676.115485,0.00027397,7]
[331713655,1720684245495,-804.995707,0.00027397,2]
[331713656,1720684245504,-804.995707,0.00027397,2]
[331713657,1720684245513,-804.995707,0.00027397,2]
[331713658,1720684245523,-804.995707,0.00027397,2]
[331713659,1720684245531,-804.995707,0.00027397,2]
[331713660,1720684245540,-804.995707,0.00027397,2]
[331713661,1720684245550,-804.995707,0.00027397,2]
[331713662,1720684245559,-804.995707,0.00027397,2]
[331713663,1720684245568,-804.995707,0.00027397,2]
[331713664,1720684245578,-804.995707,0.00027397,2]
[331713665,1720684245588,-804.995707,0.00027397,2]
[331713666,1720684245598,-804.995707,0.00027397,2]
[331713667,1720684245607,-804.995707,0.00027397,2]
[331713668,1720684245617,-804.995707,0.00027397,2]
[331713669,1720684245627,-804.995707,0.00027397,2]
[331713670,1720684245639,-804.995707,0.00027397,2]
[331713671,1720684245649,-194.613845,0.00027397,7]
[331713672,1720684245659,-194.613845,0.00027397,7]
[331713673,1720684245669,-194.613845,0.00027397,7]